[Event "*** Monthly 3|2 Blitz Masters"]
[Site "Chess.com"]
[Date "2014.11.25"]
[Round "1"]
[White "GulamaliRises"]
[Black "bsmail"]
[Result "1-0"]
[WhiteElo "2428"]
[BlackElo "2107"]
[TimeControl "180+2"]
[EndTime "11:04:31 PST"]
[Termination "GulamaliRises won by resignation"]

1. e4 {[%clk 0:02:51.2]} 1... c5 {[%clk 0:02:58.8]} 2. d4 {[%clk 0:02:52.2]}
2... cxd4 {[%clk 0:02:59.3]} 3. c3 {[%clk 0:02:53.7]} 3... Nf6 {[%clk
0:02:59.7]} 4. e5 {[%clk 0:02:53.4]} 4... Nd5 {[%clk 0:03:00.8]} 5. Nf3 {[%clk
0:02:53.4]} 5... Nc6 {[%clk 0:03:01.5]} 6. Bc4 {[%clk 0:02:53.8]} 6... Nb6
{[%clk 0:03:02.1]} 7. Bb3 {[%clk 0:02:55]} 7... d5 {[%clk 0:03:03]} 8. exd6
{[%clk 0:02:53.7]} 8... Qxd6 {[%clk 0:03:03.9]} 9. O-O {[%clk 0:02:53.6]} 9...
Be6 {[%clk 0:03:04.4]} 10. Na3 {[%clk 0:02:53.5]} 10... Bxb3 {[%clk 0:02:56]}
11. Qxb3 {[%clk 0:02:55.4]} 11... d3 {[%clk 0:02:43]} 12. Nb5 {[%clk 0:02:55.5]}
12... Qd8 {[%clk 0:02:37.9]} 13. Bf4 {[%clk 0:02:54.3]} 13... Rc8 {[%clk
0:02:33.9]} 14. Rad1 {[%clk 0:02:17.2]} 14... a6 {[%clk 0:02:26.9]} 15. Nbd4
{[%clk 0:02:11.1]} 15... Na5 {[%clk 0:01:54.7]} 16. Qa3 {[%clk 0:01:46.1]} 16...
Nac4 {[%clk 0:01:49.1]} 17. Qb3 {[%clk 0:01:46.1]} 17... e5 {[%clk 0:01:07.3]}
18. Nxe5 {[%clk 0:01:43.8]} 18... Na5 {[%clk 0:01:08.2]} 1-0

[Event "*** Monthly 3|2 Blitz Masters"]
[Site "Chess.com"]
[Date "2014.11.25"]
[Round "1"]
[White "MattyDPerrine"]
[Black "David_Klein"]
[Result "0-1"]
[WhiteElo "2028"]
[BlackElo "2363"]
[TimeControl "180+2"]
[EndTime "11:04:37 PST"]
[Termination "David_Klein won by resignation"]

1. d4 {[%clk 0:02:59.4]} 1... Nf6 {[%clk 0:02:47.5]} 2. c4 {[%clk 0:03:00.5]}
2... e6 {[%clk 0:02:48.7]} 3. Nc3 {[%clk 0:03:01.6]} 3... c5 {[%clk 0:02:49.6]}
4. d5 {[%clk 0:03:02.7]} 4... exd5 {[%clk 0:02:51.5]} 5. cxd5 {[%clk 0:03:04.6]}
5... d6 {[%clk 0:02:51]} 6. Nf3 {[%clk 0:03:05.9]} 6... g6 {[%clk 0:02:51.5]} 7.
Nd2 {[%clk 0:03:06.2]} 7... Bg7 {[%clk 0:02:43.4]} 8. e4 {[%clk 0:03:07.1]} 8...
O-O {[%clk 0:02:44.4]} 9. Be2 {[%clk 0:03:08.1]} 9... a6 {[%clk 0:02:45.5]} 10.
a4 {[%clk 0:03:09.1]} 10... Re8 {[%clk 0:02:44.1]} 11. O-O {[%clk 0:03:10.2]}
11... Qe7 {[%clk 0:02:44.3]} 12. f3 {[%clk 0:03:11]} 12... Nbd7 {[%clk
0:02:44.3]} 13. Nc4 {[%clk 0:03:12.2]} 13... Ne5 {[%clk 0:02:44.6]} 14. f4
{[%clk 0:02:40.7]} 14... Nxc4 {[%clk 0:02:40.8]} 15. Bxc4 {[%clk 0:02:37.9]}
15... Nxe4 {[%clk 0:02:28.5]} 16. Ne2 {[%clk 0:01:44.7]} 16... Bg4 {[%clk
0:02:24.6]} 17. Qc2 {[%clk 0:01:39.5]} 17... Bxe2 {[%clk 0:02:24.5]} 18. Qxe2
{[%clk 0:01:35.2]} 18... Bd4+ {[%clk 0:02:25.3]} 19. Kh1 {[%clk 0:01:25.9]}
19... Ng3+ {[%clk 0:02:03.7]} 20. hxg3 {[%clk 0:01:26.1]} 20... Qxe2 {[%clk
0:02:00.7]} 21. Bxe2 {[%clk 0:01:27.2]} 21... Rxe2 {[%clk 0:02:02.6]} 22. Rb1
{[%clk 0:01:28.3]} 22... b5 {[%clk 0:02:02.4]} 23. b3 {[%clk 0:01:24]} 23... f5
{[%clk 0:01:59.2]} 0-1

[Event "*** Monthly 3|2 Blitz Masters"]
[Site "Chess.com"]
[Date "2014.11.25"]
[Round "1"]
[White "alexsuper1987"]
[Black "Baggio95"]
[Result "0-1"]
[WhiteElo "2045"]
[BlackElo "2369"]
[TimeControl "180+2"]
[EndTime "11:07:05 PST"]
[Termination "Baggio95 won by resignation"]

1. e4 {[%clk 0:02:20.9]} 1... e5 {[%clk 0:02:55.4]} 2. d4 {[%clk 0:02:21.4]}
2... exd4 {[%clk 0:02:55.8]} 3. Nf3 {[%clk 0:02:21.5]} 3... Nc6 {[%clk
0:02:56.8]} 4. c3 {[%clk 0:02:22.4]} 4... d5 {[%clk 0:02:57]} 5. exd5 {[%clk
0:02:23.8]} 5... Qxd5 {[%clk 0:02:57.7]} 6. cxd4 {[%clk 0:02:25.5]} 6... Bg4
{[%clk 0:02:51.7]} 7. Be2 {[%clk 0:02:25.9]} 7... Bb4+ {[%clk 0:02:42.7]} 8. Nc3
{[%clk 0:02:27.1]} 8... Nf6 {[%clk 0:02:42]} 9. O-O {[%clk 0:02:27.1]} 9... Bxc3
{[%clk 0:02:42.2]} 10. bxc3 {[%clk 0:02:29]} 10... O-O {[%clk 0:02:41.5]} 11. h3
{[%clk 0:02:28.7]} 11... Bh5 {[%clk 0:02:40.2]} 12. Be3 {[%clk 0:02:28]} 12...
Na5 {[%clk 0:02:34.6]} 13. Ne5 {[%clk 0:02:14.6]} 13... Bxe2 {[%clk 0:02:32.5]}
14. Qxe2 {[%clk 0:02:16.5]} 14... Rfe8 {[%clk 0:02:19.7]} 15. Rab1 {[%clk
0:02:15.4]} 15... b6 {[%clk 0:02:16]} 16. Rfc1 {[%clk 0:01:56.5]} 16... c5
{[%clk 0:02:11]} 17. Rb5 {[%clk 0:01:42.5]} 17... Nd7 {[%clk 0:02:05.8]} 18.
Nxd7 {[%clk 0:01:31]} 18... Qxd7 {[%clk 0:02:06.7]} 19. dxc5 {[%clk 0:01:31.3]}
19... f5 {[%clk 0:02:00]} 20. cxb6 {[%clk 0:01:29.2]} 20... axb6 {[%clk
0:02:00.6]} 21. a4 {[%clk 0:00:59.7]} 21... f4 {[%clk 0:01:42.4]} 22. Qa2+
{[%clk 0:01:00]} 22... Kh8 {[%clk 0:01:40.5]} 23. Bxb6 {[%clk 0:01:00.5]} 23...
Nc6 {[%clk 0:01:37.7]} 24. Qb3 {[%clk 0:00:51]} 24... f3 {[%clk 0:01:37.3]} 25.
Rd1 {[%clk 0:00:50.9]} 25... Qc8 {[%clk 0:01:35.8]} 26. Rg5 {[%clk 0:00:44.7]}
26... fxg2 {[%clk 0:01:32]} 27. Qf7 {[%clk 0:00:28.6]} 27... Re7 {[%clk
0:01:32.8]} 28. Qf3 {[%clk 0:00:29.4]} 28... Qe8 {[%clk 0:01:17.3]} 29. Qxc6
{[%clk 0:00:26.6]} 29... Qxc6 {[%clk 0:01:16.9]} 30. Bd4 {[%clk 0:00:20.7]}
30... Qxa4 {[%clk 0:01:14.4]} 31. Rd3 {[%clk 0:00:20.7]} 31... Qc4 {[%clk
0:01:11.5]} 32. Rdg3 {[%clk 0:00:21.5]} 32... Qf1+ {[%clk 0:01:11.9]} 0-1

[Event "*** Monthly 3|2 Blitz Masters"]
[Site "Chess.com"]
[Date "2014.11.25"]
[Round "1"]
[White "jlandaw"]
[Black "Yaacovn"]
[Result "1-0"]
[WhiteElo "2277"]
[BlackElo "2588"]
[TimeControl "180+2"]
[EndTime "11:07:14 PST"]
[Termination "jlandaw won on time"]

1. e4 {[%clk 0:02:59.5]} 1... c6 {[%clk 0:02:53.5]} 2. Nf3 {[%clk 0:02:57.8]}
2... d5 {[%clk 0:02:54.3]} 3. Nc3 {[%clk 0:02:59.2]} 3... dxe4 {[%clk
0:02:54.5]} 4. Nxe4 {[%clk 0:03:00.1]} 4... Nf6 {[%clk 0:02:55.1]} 5. Nxf6+
{[%clk 0:02:58.7]} 5... gxf6 {[%clk 0:02:57]} 6. d4 {[%clk 0:02:56.5]} 6... Bg4
{[%clk 0:02:55.7]} 7. Bf4 {[%clk 0:02:41.3]} 7... e6 {[%clk 0:02:51.1]} 8. Be2
{[%clk 0:02:36.7]} 8... Bd6 {[%clk 0:02:51.5]} 9. Qd2 {[%clk 0:02:33.9]} 9...
Qc7 {[%clk 0:02:50.6]} 10. Bg3 {[%clk 0:02:32.6]} 10... Nd7 {[%clk 0:02:50]} 11.
O-O-O {[%clk 0:02:31.3]} 11... O-O-O {[%clk 0:02:44.9]} 12. Qh6 {[%clk
0:02:12.8]} 12... f5 {[%clk 0:02:31.5]} 13. Rhe1 {[%clk 0:02:00.1]} 13... Rdg8
{[%clk 0:02:22]} 14. Bxd6 {[%clk 0:01:59.4]} 14... Qxd6 {[%clk 0:02:20.6]} 15.
h3 {[%clk 0:02:00.9]} 15... Rg6 {[%clk 0:02:14.2]} 16. Qh4 {[%clk 0:01:39.4]}
16... Qf4+ {[%clk 0:02:11.5]} 17. Kb1 {[%clk 0:01:40.3]} 17... Rh6 {[%clk
0:02:11.4]} 18. Qe7 {[%clk 0:01:41.1]} 18... Bh5 {[%clk 0:02:02.4]} 19. Ne5
{[%clk 0:01:32]} 19... Nxe5 {[%clk 0:01:14.8]} 20. dxe5 {[%clk 0:01:26.3]} 20...
Bg6 {[%clk 0:00:50.8]} 21. Ba6 {[%clk 0:00:54.4]} 21... bxa6 {[%clk 0:00:38.2]}
22. Rd7 {[%clk 0:00:53]} 22... Qxf2 {[%clk 0:00:35.4]} 23. Rc7+ {[%clk
0:00:29.7]} 23... Kb8 {[%clk 0:00:34.4]} 24. Rd1 {[%clk 0:00:30.7]} 1-0

[Event "*** Monthly 3|2 Blitz Masters"]
[Site "Chess.com"]
[Date "2014.11.25"]
[Round "1"]
[White "FrankieJay"]
[Black "thegormacle"]
[Result "0-1"]
[WhiteElo "2180"]
[BlackElo "2488"]
[TimeControl "180+2"]
[EndTime "11:07:32 PST"]
[Termination "thegormacle won by checkmate"]

1. e4 {[%clk 0:02:58.8]} 1... c5 {[%clk 0:02:56.2]} 2. Nf3 {[%clk 0:02:58.9]}
2... d6 {[%clk 0:02:57.5]} 3. d4 {[%clk 0:03:00.4]} 3... cxd4 {[%clk 0:02:58.7]}
4. Nxd4 {[%clk 0:03:02.3]} 4... Nf6 {[%clk 0:02:59.2]} 5. Nc3 {[%clk 0:03:03.5]}
5... a6 {[%clk 0:03:01.1]} 6. Bg5 {[%clk 0:03:04.2]} 6... e6 {[%clk 0:03:02.2]}
7. f4 {[%clk 0:03:05]} 7... Nc6 {[%clk 0:03:03.5]} 8. Nxc6 {[%clk 0:02:47.2]}
8... bxc6 {[%clk 0:03:04.7]} 9. e5 {[%clk 0:02:48.7]} 9... h6 {[%clk 0:03:06]}
10. Bh4 {[%clk 0:02:49]} 10... g5 {[%clk 0:03:06.5]} 11. fxg5 {[%clk 0:02:49.6]}
11... Nd5 {[%clk 0:03:07.7]} 12. Ne4 {[%clk 0:02:49.6]} 12... Qb6 {[%clk
0:03:08.7]} 13. c3 {[%clk 0:02:50.4]} 13... Qe3+ {[%clk 0:02:38.9]} 14. Qe2
{[%clk 0:02:44.8]} 14... hxg5 {[%clk 0:02:21.1]} 15. Bxg5 {[%clk 0:02:17.1]}
15... Qxe2+ {[%clk 0:02:21.1]} 16. Bxe2 {[%clk 0:02:18.2]} 16... dxe5 {[%clk
0:02:22.6]} 17. c4 {[%clk 0:01:47.4]} 17... Bb4+ {[%clk 0:02:14.5]} 18. Kd1
{[%clk 0:01:39.4]} 18... f5 {[%clk 0:02:13.6]} 19. cxd5 {[%clk 0:01:30.8]} 19...
cxd5 {[%clk 0:02:09.1]} 20. Ng3 {[%clk 0:01:12.3]} 20... Be7 {[%clk 0:02:07.2]}
21. Bxe7 {[%clk 0:01:03.2]} 21... Kxe7 {[%clk 0:02:08.5]} 22. Rc1 {[%clk
0:01:04.7]} 22... Kd6 {[%clk 0:02:07.6]} 23. h4 {[%clk 0:00:56.2]} 23... Bd7
{[%clk 0:02:07.4]} 24. Nf1 {[%clk 0:00:53]} 24... Rag8 {[%clk 0:02:01.6]} 25. g3
{[%clk 0:00:51.9]} 25... f4 {[%clk 0:02:01.9]} 26. gxf4 {[%clk 0:00:42.5]} 26...
exf4 {[%clk 0:02:03.1]} 27. Nd2 {[%clk 0:00:29.6]} 27... e5 {[%clk 0:02:00.8]}
28. Ke1 {[%clk 0:00:22.8]} 28... e4 {[%clk 0:01:57.9]} 29. Nb3 {[%clk
0:00:17.1]} 29... f3 {[%clk 0:01:52.4]} 30. Bxa6 {[%clk 0:00:16.1]} 30... Rg2
{[%clk 0:01:40.2]} 31. Nd4 {[%clk 0:00:10.8]} 31... Rxb2 {[%clk 0:01:34.4]} 32.
h5 {[%clk 0:00:11.3]} 32... Rg8 {[%clk 0:01:26.3]} 33. Bf1 {[%clk 0:00:09.3]}
33... Ke5 {[%clk 0:01:11.7]} 34. Nc2 {[%clk 0:00:06.1]} 34... d4 {[%clk
0:01:05.5]} 35. Nxd4 {[%clk 0:00:07.3]} 35... Kxd4 {[%clk 0:01:06.6]} 36. Rd1+
{[%clk 0:00:08.8]} 36... Ke3 {[%clk 0:01:07.7]} 37. Rxd7 {[%clk 0:00:08.7]}
37... Rb1+ {[%clk 0:01:09.1]} 38. Rd1 {[%clk 0:00:09.8]} 38... f2# {[%clk
0:01:10.6]} 0-1

[Event "*** Monthly 3|2 Blitz Masters"]
[Site "Chess.com"]
[Date "2014.11.25"]
[Round "1"]
[White "DanielRensch"]
[Black "WanderingPuppet"]
[Result "1-0"]
[WhiteElo "2354"]
[BlackElo "2016"]
[TimeControl "180+2"]
[EndTime "11:07:34 PST"]
[Termination "DanielRensch won by resignation"]

1. e4 {[%clk 0:02:58.4]} 1... c5 {[%clk 0:02:56.8]} 2. Nf3 {[%clk 0:02:59.2]}
2... d6 {[%clk 0:02:56.7]} 3. b3 {[%clk 0:02:56.9]} 3... a6 {[%clk 0:02:53.3]}
4. Bb2 {[%clk 0:02:51.1]} 4... e5 {[%clk 0:02:52.5]} 5. c3 {[%clk 0:02:45.6]}
5... Nc6 {[%clk 0:02:52.8]} 6. h3 {[%clk 0:02:45]} 6... Be7 {[%clk 0:02:53.5]}
7. Bd3 {[%clk 0:02:45.1]} 7... Nf6 {[%clk 0:02:54.4]} 8. Qe2 {[%clk 0:02:40.9]}
8... O-O {[%clk 0:02:54.7]} 9. O-O {[%clk 0:02:41.6]} 9... Re8 {[%clk
0:02:52.2]} 10. Bc2 {[%clk 0:02:41.8]} 10... h6 {[%clk 0:02:48.4]} 11. a4 {[%clk
0:02:42.7]} 11... Be6 {[%clk 0:02:49.1]} 12. Na3 {[%clk 0:02:43.7]} 12... d5
{[%clk 0:02:46.7]} 13. exd5 {[%clk 0:02:44.8]} 13... Nxd5 {[%clk 0:02:47.5]} 14.
Nc4 {[%clk 0:02:41]} 14... Nf4 {[%clk 0:02:43.5]} 15. Qe4 {[%clk 0:02:41.8]}
15... f5 {[%clk 0:02:34.8]} 16. Qe3 {[%clk 0:02:43]} 16... Nd5 {[%clk 0:02:17]}
17. Qe1 {[%clk 0:02:34.8]} 17... e4 {[%clk 0:02:11.1]} 18. d3 {[%clk 0:02:26.1]}
18... b5 {[%clk 0:01:42.7]} 19. dxe4 {[%clk 0:01:50.4]} 19... Nf4 {[%clk
0:01:05.5]} 20. exf5 {[%clk 0:01:45.4]} 20... Bd5 {[%clk 0:00:56]} 21. Ncd2
{[%clk 0:00:52.8]} 21... Bh4 {[%clk 0:00:41.5]} 22. Qd1 {[%clk 0:00:52.3]} 22...
Re2 {[%clk 0:00:14.8]} 23. axb5 {[%clk 0:00:49.9]} 23... axb5 {[%clk 0:00:06.4]}
24. Rxa8 {[%clk 0:00:41.2]} 24... Qxa8 {[%clk 0:00:08.3]} 25. c4 {[%clk
0:00:39.9]} 25... Nd4 {[%clk 0:00:04.8]} 26. cxd5 {[%clk 0:00:37.9]} 26... Nxf3+
{[%clk 0:00:04.5]} 27. Nxf3 {[%clk 0:00:38.4]} 27... Bxf2+ {[%clk 0:00:02.1]}
28. Rxf2 {[%clk 0:00:38.1]} 28... Rxf2 {[%clk 0:00:04]} 29. Kxf2 {[%clk
0:00:39.7]} 1-0

[Event "*** Monthly 3|2 Blitz Masters"]
[Site "Chess.com"]
[Date "2014.11.25"]
[Round "1"]
[White "hitaman"]
[Black "gumersindo"]
[Result "1-0"]
[WhiteElo "2371"]
[BlackElo "2034"]
[TimeControl "180+2"]
[EndTime "11:07:40 PST"]
[Termination "hitaman won by resignation"]

1. e4 {[%clk 0:02:58.8]} 1... e6 {[%clk 0:02:58.4]} 2. d4 {[%clk 0:02:59.4]}
2... d5 {[%clk 0:02:55.9]} 3. Nd2 {[%clk 0:03:00.3]} 3... Nf6 {[%clk 0:02:55.8]}
4. e5 {[%clk 0:03:01.5]} 4... Nfd7 {[%clk 0:02:57.1]} 5. Bd3 {[%clk 0:03:02.8]}
5... c5 {[%clk 0:02:58.3]} 6. c3 {[%clk 0:03:04.3]} 6... Nc6 {[%clk 0:02:59.6]}
7. Ne2 {[%clk 0:03:05.8]} 7... a5 {[%clk 0:02:58.2]} 8. O-O {[%clk 0:03:05.2]}
8... a4 {[%clk 0:02:56]} 9. Nf3 {[%clk 0:03:03.8]} 9... Be7 {[%clk 0:02:51.5]}
10. g3 {[%clk 0:02:59.1]} 10... a3 {[%clk 0:02:36.3]} 11. bxa3 {[%clk
0:02:56.4]} 11... c4 {[%clk 0:02:37.1]} 12. Bb1 {[%clk 0:02:53.7]} 12... Bxa3
{[%clk 0:02:37.8]} 13. Bg5 {[%clk 0:02:35]} 13... Qa5 {[%clk 0:02:16]} 14. Qc2
{[%clk 0:02:06.5]} 14... b5 {[%clk 0:02:10.7]} 15. Nf4 {[%clk 0:02:07.5]} 15...
Qa4 {[%clk 0:02:01.8]} 16. Qe2 {[%clk 0:02:02.5]} 16... Nf8 {[%clk 0:01:54]} 17.
Nh5 {[%clk 0:02:02]} 17... Rg8 {[%clk 0:01:50.8]} 18. Bf6 {[%clk 0:01:59.8]}
18... g6 {[%clk 0:01:34.7]} 19. Ng7+ {[%clk 0:01:53.9]} 19... Kd7 {[%clk
0:01:33]} 20. Ng5 {[%clk 0:01:55.4]} 20... Nd8 {[%clk 0:01:29.4]} 21. Bxd8
{[%clk 0:01:42.3]} 21... Rxg7 {[%clk 0:01:16.7]} 22. Bf6 {[%clk 0:01:41.4]}
22... Rg8 {[%clk 0:01:17.6]} 23. Nxf7 {[%clk 0:01:40]} 23... Ke8 {[%clk
0:01:15.9]} 24. Nd6+ {[%clk 0:01:36.6]} 24... Kd7 {[%clk 0:01:08.4]} 25. Bg5
{[%clk 0:01:32.6]} 25... Bxd6 {[%clk 0:00:54.6]} 26. exd6 {[%clk 0:01:33.3]}
26... Kc6 {[%clk 0:00:55.9]} 27. Bc2 {[%clk 0:01:27.5]} 27... Qa5 {[%clk
0:00:55.4]} 28. a4 {[%clk 0:01:27.3]} 28... b4 {[%clk 0:00:53.7]} 29. cxb4
{[%clk 0:01:28.6]} 29... Qxb4 {[%clk 0:00:52.8]} 30. Rab1 {[%clk 0:01:28.2]}
30... Qc3 {[%clk 0:00:47.1]} 31. Rfc1 {[%clk 0:01:22.1]} 31... Qxd4 {[%clk
0:00:44.8]} 32. Be3 {[%clk 0:01:19]} 32... Qf6 {[%clk 0:00:44.6]} 33. a5 {[%clk
0:01:17.2]} 33... Rxa5 {[%clk 0:00:43.3]} 34. Rb6+ {[%clk 0:01:11.4]} 34... Kd7
{[%clk 0:00:42.9]} 35. Qd2 {[%clk 0:01:07]} 35... Ra1 {[%clk 0:00:40.6]} 36. Kg2
{[%clk 0:00:59.2]} 36... Ke8 {[%clk 0:00:32.6]} 37. Bd4 {[%clk 0:00:59.5]} 37...
Qd8 {[%clk 0:00:28]} 38. Rxa1 {[%clk 0:00:59.6]} 38... Qxb6 {[%clk 0:00:28.6]}
39. Bxb6 {[%clk 0:01:00.3]} 1-0

[Event "*** Monthly 3|2 Blitz Masters"]
[Site "Chess.com"]
[Date "2014.11.25"]
[Round "1"]
[White "Quinten94"]
[Black "grandmastergauri"]
[Result "0-1"]
[WhiteElo "1967"]
[BlackElo "2351"]
[TimeControl "180+2"]
[EndTime "11:07:58 PST"]
[Termination "grandmastergauri won by resignation"]

1. e4 {[%clk 0:02:50.4]} 1... c6 {[%clk 0:02:58.3]} 2. Nc3 {[%clk 0:02:50.2]}
2... d5 {[%clk 0:02:58.9]} 3. Nf3 {[%clk 0:02:52]} 3... dxe4 {[%clk 0:02:59.4]}
4. Nxe4 {[%clk 0:02:52.9]} 4... Bf5 {[%clk 0:03:01]} 5. Ng3 {[%clk 0:02:53.6]}
5... Bg6 {[%clk 0:03:02.3]} 6. h4 {[%clk 0:02:54.9]} 6... f6 {[%clk 0:02:44.9]}
7. h5 {[%clk 0:02:53.9]} 7... Bf7 {[%clk 0:02:46.3]} 8. d4 {[%clk 0:02:55.3]}
8... e5 {[%clk 0:02:21.6]} 9. dxe5 {[%clk 0:02:52.6]} 9... Qxd1+ {[%clk
0:02:22.2]} 10. Kxd1 {[%clk 0:02:54.3]} 10... Nd7 {[%clk 0:02:22.9]} 11. exf6
{[%clk 0:02:40.2]} 11... Ngxf6 {[%clk 0:02:22.7]} 12. c3 {[%clk 0:02:24.5]}
12... Ng4 {[%clk 0:02:17.8]} 13. Be3 {[%clk 0:02:19.2]} 13... Nxe3+ {[%clk
0:02:12]} 14. fxe3 {[%clk 0:02:20.3]} 14... Bc5 {[%clk 0:02:12.2]} 15. Bd3
{[%clk 0:02:15.5]} 15... O-O-O {[%clk 0:02:06.1]} 16. Ke2 {[%clk 0:02:10]} 16...
Rhe8 {[%clk 0:01:50.5]} 17. e4 {[%clk 0:02:00.8]} 17... Nf6 {[%clk 0:01:28.3]}
18. Ng5 {[%clk 0:01:58.4]} 18... Bg8 {[%clk 0:01:26.6]} 19. h6 {[%clk
0:01:57.6]} 19... gxh6 {[%clk 0:01:22.6]} 20. Rxh6 {[%clk 0:01:58.6]} 20... Ng4
{[%clk 0:01:24]} 21. Rh4 {[%clk 0:01:44.8]} 21... Ne5 {[%clk 0:01:24.3]} 22. Bc2
{[%clk 0:01:40.1]} 22... Bc4+ {[%clk 0:01:10.6]} 23. Ke1 {[%clk 0:01:38.9]}
23... Be3 {[%clk 0:01:10.7]} 24. Nf3 {[%clk 0:01:31.7]} 24... Nxf3+ {[%clk
0:00:56.4]} 25. gxf3 {[%clk 0:01:33.1]} 25... Rd2 {[%clk 0:00:54.2]} 26. Bb3
{[%clk 0:01:11.9]} 26... Bxb3 {[%clk 0:00:23.3]} 27. axb3 {[%clk 0:01:12.3]}
27... Red8 {[%clk 0:00:24.9]} 28. Rg4 {[%clk 0:00:39.1]} 28... Rxb2 {[%clk
0:00:16.6]} 29. Nf5 {[%clk 0:00:40.3]} 29... Bd2+ {[%clk 0:00:17.1]} 30. Kf1
{[%clk 0:00:40.1]} 30... Bxc3 {[%clk 0:00:18.3]} 31. Rg2 {[%clk 0:00:31]} 31...
Rxg2 {[%clk 0:00:18.1]} 0-1

[Event "*** Monthly 3|2 Blitz Masters"]
[Site "Chess.com"]
[Date "2014.11.25"]
[Round "1"]
[White "AungTZ"]
[Black "jcibarra"]
[Result "1-0"]
[WhiteElo "2182"]
[BlackElo "2429"]
[TimeControl "180+2"]
[EndTime "11:08:22 PST"]
[Termination "AungTZ won by resignation"]

1. e4 {[%clk 0:02:55.5]} 1... c5 {[%clk 0:02:58.4]} 2. Nf3 {[%clk 0:02:56.1]}
2... e6 {[%clk 0:02:58.7]} 3. d4 {[%clk 0:02:54.7]} 3... cxd4 {[%clk 0:03:00.2]}
4. Nxd4 {[%clk 0:02:55.8]} 4... a6 {[%clk 0:03:01.7]} 5. Nc3 {[%clk 0:02:55.4]}
5... b5 {[%clk 0:03:01.7]} 6. a3 {[%clk 0:02:55.5]} 6... Bb7 {[%clk 0:03:00.9]}
7. Bd3 {[%clk 0:02:56.1]} 7... Qb6 {[%clk 0:02:59.7]} 8. Be3 {[%clk 0:02:55.8]}
8... Bc5 {[%clk 0:02:59.2]} 9. Nce2 {[%clk 0:02:56.3]} 9... Nc6 {[%clk
0:02:47.4]} 10. c3 {[%clk 0:02:55.5]} 10... Qa7 {[%clk 0:02:33.9]} 11. b4 {[%clk
0:02:51.1]} 11... Bb6 {[%clk 0:02:33.9]} 12. a4 {[%clk 0:02:48.2]} 12... bxa4
{[%clk 0:02:26.4]} 13. Qxa4 {[%clk 0:02:37.9]} 13... Nf6 {[%clk 0:02:18.5]} 14.
Qc2 {[%clk 0:02:24.2]} 14... Nxd4 {[%clk 0:02:10.8]} 15. cxd4 {[%clk 0:02:11.6]}
15... Rc8 {[%clk 0:02:08.7]} 16. Qb1 {[%clk 0:02:12.1]} 16... Ng4 {[%clk
0:02:06.6]} 17. O-O {[%clk 0:02:11.3]} 17... Nxe3 {[%clk 0:02:04.6]} 18. fxe3
{[%clk 0:02:12.2]} 18... Ra8 {[%clk 0:01:40.4]} 19. e5 {[%clk 0:01:55.1]} 19...
h6 {[%clk 0:01:38]} 20. Be4 {[%clk 0:01:53.5]} 20... O-O {[%clk 0:01:36.8]} 21.
Kh1 {[%clk 0:01:53.5]} 21... Bxe4 {[%clk 0:01:30.4]} 22. Qxe4 {[%clk 0:01:53.6]}
22... Rac8 {[%clk 0:01:29.9]} 23. Ng3 {[%clk 0:01:38.2]} 23... Qa8 {[%clk
0:01:23.8]} 24. Qd3 {[%clk 0:01:39.2]} 24... f5 {[%clk 0:01:12.7]} 25. exf6
{[%clk 0:01:34]} 25... Rf7 {[%clk 0:01:14]} 26. fxg7 {[%clk 0:01:33.1]} 26...
Rxg7 {[%clk 0:01:14.9]} 27. Rxa6 {[%clk 0:01:30.7]} 27... Qb7 {[%clk 0:01:14.9]}
28. Ra2 {[%clk 0:01:30.1]} 28... Qd5 {[%clk 0:01:11.9]} 29. Raf2 {[%clk
0:01:29.2]} 29... Qg5 {[%clk 0:00:48.7]} 30. Ne4 {[%clk 0:01:24.5]} 30... Qh4
{[%clk 0:00:49.2]} 31. Nf6+ {[%clk 0:01:24.6]} 31... Kh8 {[%clk 0:00:49.8]} 32.
Rf4 {[%clk 0:01:14.7]} 32... Qg5 {[%clk 0:00:49.3]} 33. Rg4 {[%clk 0:01:15.7]}
33... Qf5 {[%clk 0:00:29.4]} 34. Rxf5 {[%clk 0:01:00.2]} 34... exf5 {[%clk
0:00:30.8]} 35. Rf4 {[%clk 0:01:01.4]} 35... Rg5 {[%clk 0:00:20.9]} 36. h3
{[%clk 0:00:55.9]} 36... Bc7 {[%clk 0:00:15.8]} 37. Rf1 {[%clk 0:00:56.6]} 37...
Bd6 {[%clk 0:00:15.4]} 38. Nd5 {[%clk 0:00:54.3]} 38... Rcg8 {[%clk 0:00:12.6]}
39. Rf2 {[%clk 0:00:50.6]} 39... Ra8 {[%clk 0:00:12.9]} 40. Nf4 {[%clk
0:00:50.9]} 40... Ra1+ {[%clk 0:00:11.9]} 41. Kh2 {[%clk 0:00:52]} 41... Ra3
{[%clk 0:00:10.7]} 42. Qxa3 {[%clk 0:00:51.8]} 1-0